[Event "Early-Titled-Tuesday-Blitz-December-26-2023"]
[Site "Chess.com"]
[Date "2023.12.26"]
[Round "2"]
[White "Matic_Nareks"]
[Black "SamCopeland"]
[Result "0-1"]
[WhiteElo "2479"]
[BlackElo "2294"]
[TimeControl "180+1"]
[EndTime "8:14:27 PST"]
[Termination "SamCopeland won by resignation"]

1. g4 {[%clk 0:03:00.9]} 1... e5 {[%clk 0:02:57.5]} 2. Bg2 {[%clk 0:03:00.6]}
2... h5 {[%clk 0:02:56.3]} 3. d4 {[%clk 0:02:56.1]} 3... exd4 {[%clk 0:02:49.5]}
4. g5 {[%clk 0:02:55.8]} 4... Nc6 {[%clk 0:02:37.7]} 5. Nf3 {[%clk 0:02:52.1]}
5... Bc5 {[%clk 0:02:35.9]} 6. a3 {[%clk 0:02:50.3]} 6... a5 {[%clk 0:02:33.3]}
7. c3 {[%clk 0:02:48.8]} 7... dxc3 {[%clk 0:02:30.6]} 8. Nxc3 {[%clk 0:02:49.7]}
8... Nge7 {[%clk 0:02:24.1]} 9. O-O {[%clk 0:02:46]} 9... d5 {[%clk 0:02:23.2]}
10. Bf4 {[%clk 0:02:35.4]} 10... h4 {[%clk 0:02:21.7]} 11. h3 {[%clk 0:02:34.1]}
11... Bf5 {[%clk 0:02:16.6]} 12. Rc1 {[%clk 0:02:33.3]} 12... Bb6 {[%clk
0:02:13.7]} 13. e3 {[%clk 0:02:29.5]} 13... Qd7 {[%clk 0:02:12.7]} 14. Kh2
{[%clk 0:02:25.2]} 14... O-O-O {[%clk 0:02:11.2]} 15. Ne5 {[%clk 0:02:24.3]}
15... Nxe5 {[%clk 0:02:09.9]} 16. Bxe5 {[%clk 0:02:25.2]} 16... f6 {[%clk
0:02:07.1]} 17. gxf6 {[%clk 0:02:21.1]} 17... gxf6 {[%clk 0:02:07.3]} 18. Bxf6
{[%clk 0:02:22]} 18... Qd6+ {[%clk 0:02:07.3]} 19. Be5 {[%clk 0:02:18.3]} 19...
Qxe5+ {[%clk 0:02:04.5]} 20. Kh1 {[%clk 0:02:18.7]} 20... Rhg8 {[%clk
0:02:00.7]} 21. Ne2 {[%clk 0:02:11]} 21... Rxg2 {[%clk 0:01:51.2]} 22. Kxg2
{[%clk 0:02:11.9]} 22... Rg8+ {[%clk 0:01:49.2]} 23. Kh1 {[%clk 0:02:11.3]}
23... Be4+ {[%clk 0:01:37]} 24. f3 {[%clk 0:02:09.7]} 24... Qf5 {[%clk
0:00:52.2]} 25. Ng1 {[%clk 0:02:01.8]} 25... Bxe3 {[%clk 0:00:43]} 26. fxe4
{[%clk 0:02:01.4]} 26... Rxg1+ {[%clk 0:00:38.1]} 27. Kh2 {[%clk 0:02:00.5]}
27... Qe5+ {[%clk 0:00:33.5]} 0-1

[Event "Early-Titled-Tuesday-Blitz-December-26-2023"]
[Site "Chess.com"]
[Date "2023.12.26"]
[Round "2"]
[White "MightyGMpretender"]
[Black "giomar27"]
[Result "1-0"]
[WhiteElo "2736"]
[BlackElo "2391"]
[TimeControl "180+1"]
[EndTime "8:14:31 PST"]
[Termination "MightyGMpretender won by resignation"]

1. d4 {[%clk 0:03:00.9]} 1... Nf6 {[%clk 0:02:59.8]} 2. c4 {[%clk 0:03:01.5]}
2... c5 {[%clk 0:03:00.4]} 3. Nc3 {[%clk 0:03:02.2]} 3... cxd4 {[%clk
0:03:00.4]} 4. Qxd4 {[%clk 0:03:03]} 4... Nc6 {[%clk 0:03:00.7]} 5. Qh4 {[%clk
0:03:03.8]} 5... g6 {[%clk 0:02:57.5]} 6. Nf3 {[%clk 0:03:01.3]} 6... Bg7 {[%clk
0:02:57.3]} 7. Bh6 {[%clk 0:02:59.3]} 7... O-O {[%clk 0:02:55.8]} 8. O-O-O
{[%clk 0:02:55]} 8... d6 {[%clk 0:02:47.2]} 9. Ng5 {[%clk 0:02:48.5]} 9... Ne5
{[%clk 0:02:07.5]} 10. f3 {[%clk 0:02:41.6]} 10... Qc7 {[%clk 0:01:56.8]} 11. e3
{[%clk 0:02:39.1]} 11... a6 {[%clk 0:01:45.7]} 12. Bxg7 {[%clk 0:02:34.9]} 12...
Kxg7 {[%clk 0:01:45.6]} 13. Nd5 {[%clk 0:02:35.7]} 13... Qc5 {[%clk 0:01:32.2]}
14. b4 {[%clk 0:02:21.9]} 14... Qa7 {[%clk 0:01:21.2]} 15. Nxf6 {[%clk
0:02:09.2]} 15... Qxe3+ {[%clk 0:01:21.1]} 16. Kb2 {[%clk 0:02:08.5]} 16... Kxf6
{[%clk 0:01:10.6]} 17. Nxh7+ {[%clk 0:02:06.8]} 17... Kg7 {[%clk 0:01:10.1]} 18.
Nxf8 {[%clk 0:02:07.5]} 18... Bf5 {[%clk 0:00:37]} 19. Qh7+ {[%clk 0:02:02.2]}
19... Kf6 {[%clk 0:00:37.1]} 20. Qh8+ {[%clk 0:01:50.9]} 20... Kg5 {[%clk
0:00:37.1]} 21. h4+ {[%clk 0:01:50.4]} 21... Kf4 {[%clk 0:00:37.1]} 22. Qh6+
{[%clk 0:01:51.1]} 22... Kg3 {[%clk 0:00:35.7]} 23. Qxe3 {[%clk 0:01:51.2]}
23... Rxf8 {[%clk 0:00:34.8]} 24. f4+ {[%clk 0:01:50.1]} 1-0

[Event "Early-Titled-Tuesday-Blitz-December-26-2023"]
[Site "Chess.com"]
[Date "2023.12.26"]
[Round "2"]
[White "SmirnovTimofey2000"]
[Black "Witty_Alien"]
[Result "0-1"]
[WhiteElo "2018"]
[BlackElo "2446"]
[TimeControl "180+1"]
[EndTime "8:14:40 PST"]
[Termination "Witty_Alien won by resignation"]

1. d4 {[%clk 0:03:00.9]} 1... e5 {[%clk 0:02:57.8]} 2. dxe5 {[%clk 0:03:00.6]}
2... d6 {[%clk 0:02:57.9]} 3. Nf3 {[%clk 0:02:59.2]} 3... Nc6 {[%clk 0:02:57.9]}
4. Bg5 {[%clk 0:02:58.5]} 4... Qd7 {[%clk 0:02:55.9]} 5. exd6 {[%clk 0:02:48.7]}
5... Bxd6 {[%clk 0:02:56.1]} 6. Nc3 {[%clk 0:02:39.4]} 6... Qf5 {[%clk 0:02:53]}
7. Qd3 {[%clk 0:02:31]} 7... h6 {[%clk 0:02:49.7]} 8. Bh4 {[%clk 0:02:15.8]}
8... Qa5 {[%clk 0:02:49.6]} 9. Bg3 {[%clk 0:02:07.1]} 9... Bf5 {[%clk
0:02:44.1]} 10. Qd5 {[%clk 0:02:02.3]} 10... Qb6 {[%clk 0:01:49.2]} 11. Qxf5
{[%clk 0:01:51.2]} 11... Qxb2 {[%clk 0:01:46.6]} 12. Rd1 {[%clk 0:01:13.5]}
12... Qxc3+ {[%clk 0:01:44.9]} 13. Nd2 {[%clk 0:01:12.6]} 13... Nge7 {[%clk
0:01:04.3]} 14. Bxd6 {[%clk 0:01:10.3]} 14... Nxf5 {[%clk 0:01:02.8]} 0-1

[Event "Early-Titled-Tuesday-Blitz-December-26-2023"]
[Site "Chess.com"]
[Date "2023.12.26"]
[Round "2"]
[White "Angry_Twin"]
[Black "nekotyanof"]
[Result "1/2-1/2"]
[WhiteElo "2954"]
[BlackElo "2636"]
[TimeControl "180+1"]
[EndTime "8:14:56 PST"]
[Termination "Game drawn by repetition"]

1. e4 {[%clk 0:03:00.9]} 1... c5 {[%clk 0:02:53.3]} 2. Nf3 {[%clk 0:03:00.9]}
2... Nc6 {[%clk 0:02:53.5]} 3. Bb5 {[%clk 0:03:00.7]} 3... e5 {[%clk 0:02:53.4]}
4. O-O {[%clk 0:02:54.9]} 4... Bd6 {[%clk 0:02:53.8]} 5. c3 {[%clk 0:02:55.4]}
5... a6 {[%clk 0:02:53.6]} 6. Ba4 {[%clk 0:02:55.4]} 6... b5 {[%clk 0:02:54.1]}
7. Bb3 {[%clk 0:02:55.7]} 7... c4 {[%clk 0:02:54.6]} 8. Bc2 {[%clk 0:02:56]}
8... Nf6 {[%clk 0:02:55.4]} 9. d4 {[%clk 0:02:49.9]} 9... cxd3 {[%clk
0:02:56.3]} 10. Qxd3 {[%clk 0:02:49.7]} 10... Bc7 {[%clk 0:02:56.9]} 11. Bg5
{[%clk 0:02:49.2]} 11... h6 {[%clk 0:02:56.6]} 12. Bh4 {[%clk 0:02:49.1]} 12...
g5 {[%clk 0:02:56.9]} 13. Bg3 {[%clk 0:02:46.7]} 13... d6 {[%clk 0:02:53]} 14.
a4 {[%clk 0:02:42.3]} 14... b4 {[%clk 0:02:02.4]} 15. Nbd2 {[%clk 0:02:39.2]}
15... Be6 {[%clk 0:01:58.4]} 16. Rfe1 {[%clk 0:02:26.1]} 16... O-O {[%clk
0:01:57.8]} 17. Bb3 {[%clk 0:02:11.9]} 17... Qd7 {[%clk 0:01:51.4]} 18. Bxe6
{[%clk 0:02:10.2]} 18... Qxe6 {[%clk 0:01:51.5]} 19. Nc4 {[%clk 0:02:06.7]}
19... Rfd8 {[%clk 0:01:48.3]} 20. Ne3 {[%clk 0:02:01.6]} 20... bxc3 {[%clk
0:01:42.6]} 21. Qxc3 {[%clk 0:01:40.9]} 21... Ba5 {[%clk 0:01:42]} 22. Qxc6
{[%clk 0:00:46.8]} 22... Rdc8 {[%clk 0:01:42.1]} 23. Qb7 {[%clk 0:00:45.9]}
23... Rcb8 {[%clk 0:01:42.5]} 24. Qc6 {[%clk 0:00:45.9]} 24... Rc8 {[%clk
0:01:43.1]} 25. Qb7 {[%clk 0:00:33.6]} 25... Rcb8 {[%clk 0:01:37.1]} 26. Qc6
{[%clk 0:00:28.9]} 26... Rc8 {[%clk 0:01:37.4]} 1/2-1/2

[Event "Early-Titled-Tuesday-Blitz-December-26-2023"]
[Site "Chess.com"]
[Date "2023.12.26"]
[Round "2"]
[White "klimkoj"]
[Black "Rap_woyska"]
[Result "1-0"]
[WhiteElo "2816"]
[BlackElo "2404"]
[TimeControl "180+1"]
[EndTime "8:14:57 PST"]
[Termination "klimkoj won by resignation"]

1. Nf3 {[%clk 0:03:00.9]} 1... d5 {[%clk 0:02:59.3]} 2. g3 {[%clk 0:03:01.8]}
2... c6 {[%clk 0:02:59.4]} 3. Bg2 {[%clk 0:03:02.3]} 3... Bg4 {[%clk 0:02:59.9]}
4. O-O {[%clk 0:03:03.2]} 4... Nd7 {[%clk 0:03:00.4]} 5. d4 {[%clk 0:03:03]}
5... Ngf6 {[%clk 0:03:00.4]} 6. c4 {[%clk 0:03:03.5]} 6... e6 {[%clk 0:03:00.5]}
7. Qc2 {[%clk 0:03:01.2]} 7... Be7 {[%clk 0:02:53.5]} 8. Nbd2 {[%clk 0:03:01.1]}
8... Bf5 {[%clk 0:02:49.9]} 9. Qb3 {[%clk 0:02:59.7]} 9... Qb6 {[%clk
0:02:50.2]} 10. Nh4 {[%clk 0:02:59.7]} 10... O-O {[%clk 0:02:30.4]} 11. Nxf5
{[%clk 0:02:59.3]} 11... exf5 {[%clk 0:02:31.3]} 12. e3 {[%clk 0:02:56.6]} 12...
Qxb3 {[%clk 0:02:22.7]} 13. Nxb3 {[%clk 0:02:52.4]} 13... a5 {[%clk 0:01:53.9]}
14. cxd5 {[%clk 0:02:49.5]} 14... Nxd5 {[%clk 0:01:53.8]} 15. Bd2 {[%clk
0:02:40.1]} 15... Bb4 {[%clk 0:01:42.3]} 16. Bxd5 {[%clk 0:02:33.4]} 16... cxd5
{[%clk 0:01:40.5]} 17. Bxb4 {[%clk 0:02:32.1]} 17... axb4 {[%clk 0:01:41.4]} 18.
Rfc1 {[%clk 0:02:33]} 18... Rfc8 {[%clk 0:01:13.2]} 19. Rxc8+ {[%clk 0:02:32.3]}
19... Rxc8 {[%clk 0:01:14.1]} 20. Rc1 {[%clk 0:02:32.8]} 20... Rc4 {[%clk
0:01:11.3]} 21. Kf1 {[%clk 0:02:29.3]} 21... Kf8 {[%clk 0:01:09.3]} 22. Ke2
{[%clk 0:02:29.4]} 22... Ke7 {[%clk 0:01:09.1]} 23. Kd2 {[%clk 0:02:27.2]} 23...
Kd6 {[%clk 0:01:02.6]} 24. Na5 {[%clk 0:02:24.6]} 24... Rxc1 {[%clk 0:00:47.6]}
25. Kxc1 {[%clk 0:02:25.5]} 25... b6 {[%clk 0:00:48]} 26. Nb3 {[%clk 0:02:25.2]}
26... Kc6 {[%clk 0:00:34.9]} 27. Kd2 {[%clk 0:02:23.4]} 27... Kb5 {[%clk
0:00:34.8]} 28. Nc1 {[%clk 0:02:22.9]} 28... Nf6 {[%clk 0:00:31.3]} 29. Nd3
{[%clk 0:02:23]} 29... Ne4+ {[%clk 0:00:30.9]} 30. Kc2 {[%clk 0:02:23.1]} 30...
Nd6 {[%clk 0:00:19.7]} 31. Kb3 {[%clk 0:02:18.6]} 31... g5 {[%clk 0:00:16.5]}
32. Nxb4 {[%clk 0:02:15.9]} 32... g4 {[%clk 0:00:16.4]} 33. Nxd5 {[%clk
0:02:13.7]} 33... Ne4 {[%clk 0:00:16.9]} 34. Nc3+ {[%clk 0:02:14.1]} 1-0

[Event "Early-Titled-Tuesday-Blitz-December-26-2023"]
[Site "Chess.com"]
[Date "2023.12.26"]
[Round "2"]
[White "MetiForce"]
[Black "NovakRatko"]
[Result "1-0"]
[WhiteElo "2871"]
[BlackElo "2428"]
[TimeControl "180+1"]
[EndTime "8:15:06 PST"]
[Termination "MetiForce won on time"]

1. b3 {[%clk 0:02:30.9]} 1... d5 {[%clk 0:02:27.1]} 2. Bb2 {[%clk 0:02:31.8]}
2... c5 {[%clk 0:02:27]} 3. f4 {[%clk 0:02:32.1]} 3... Nc6 {[%clk 0:02:27.1]} 4.
e3 {[%clk 0:02:31.9]} 4... f6 {[%clk 0:02:27.3]} 5. Bb5 {[%clk 0:02:27.5]} 5...
Qb6 {[%clk 0:02:26]} 6. a4 {[%clk 0:02:26.7]} 6... a6 {[%clk 0:02:24.1]} 7. Bd3
{[%clk 0:02:24.5]} 7... g6 {[%clk 0:02:22.2]} 8. Nc3 {[%clk 0:02:24.6]} 8... Be6
{[%clk 0:02:16.5]} 9. f5 {[%clk 0:02:20.8]} 9... Bf7 {[%clk 0:02:12.2]} 10. Nh3
{[%clk 0:02:18.1]} 10... O-O-O {[%clk 0:02:11.1]} 11. Nf4 {[%clk 0:02:16.8]}
11... d4 {[%clk 0:02:09.5]} 12. a5 {[%clk 0:02:10.1]} 12... Qc7 {[%clk
0:02:05.6]} 13. Na4 {[%clk 0:02:10.2]} 13... dxe3 {[%clk 0:02:03.8]} 14. dxe3
{[%clk 0:02:08.3]} 14... Nb4 {[%clk 0:01:56.9]} 15. O-O {[%clk 0:02:05.4]} 15...
g5 {[%clk 0:01:56.2]} 16. Nb6+ {[%clk 0:02:00.6]} 16... Kb8 {[%clk 0:01:52.5]}
17. Ne6 {[%clk 0:02:00.8]} 17... Bxe6 {[%clk 0:01:51.7]} 18. fxe6 {[%clk
0:02:01.7]} 18... Qd6 {[%clk 0:01:44.5]} 19. Bc4 {[%clk 0:01:54.9]} 19... Qc7
{[%clk 0:01:37.2]} 20. Nd7+ {[%clk 0:01:53]} 20... Ka7 {[%clk 0:01:35.2]} 21. c3
{[%clk 0:01:52.5]} 21... Nc6 {[%clk 0:01:34.8]} 22. Ba3 {[%clk 0:01:52.8]} 22...
Nxa5 {[%clk 0:01:23.7]} 23. Bxc5+ {[%clk 0:01:52.9]} 23... Qxc5 {[%clk
0:01:17.8]} 24. Nxc5 {[%clk 0:01:52.9]} 24... Rxd1 {[%clk 0:01:00.9]} 25. Rfxd1
{[%clk 0:01:53.8]} 1-0

[Event "Early-Titled-Tuesday-Blitz-December-26-2023"]
[Site "Chess.com"]
[Date "2023.12.26"]
[Round "2"]
[White "Vaibhavraut99"]
[Black "ChessBliss09"]
[Result "1-0"]
[WhiteElo "2673"]
[BlackElo "2096"]
[TimeControl "180+1"]
[EndTime "8:15:14 PST"]
[Termination "Vaibhavraut99 won by checkmate"]

1. e4 {[%clk 0:03:00.9]} 1... c6 {[%clk 0:02:59.1]} 2. d4 {[%clk 0:02:59.6]}
2... d5 {[%clk 0:02:59.7]} 3. Nd2 {[%clk 0:03:00.2]} 3... dxe4 {[%clk
0:02:59.5]} 4. Nxe4 {[%clk 0:03:00.5]} 4... Nf6 {[%clk 0:03:00.2]} 5. Nxf6+
{[%clk 0:02:58.2]} 5... exf6 {[%clk 0:03:01.1]} 6. Nf3 {[%clk 0:02:59.1]} 6...
Bd6 {[%clk 0:03:00.9]} 7. Bd3 {[%clk 0:02:59.7]} 7... O-O {[%clk 0:03:01.1]} 8.
O-O {[%clk 0:02:59.3]} 8... Re8 {[%clk 0:02:58.6]} 9. h3 {[%clk 0:02:59.4]} 9...
Nd7 {[%clk 0:02:57.6]} 10. c3 {[%clk 0:02:58.9]} 10... Nf8 {[%clk 0:02:57.5]}
11. Be3 {[%clk 0:02:57.5]} 11... b5 {[%clk 0:02:53.6]} 12. a4 {[%clk 0:02:56.9]}
12... Bd7 {[%clk 0:02:33.8]} 13. Nd2 {[%clk 0:02:53.6]} 13... Ng6 {[%clk
0:02:27.1]} 14. Ne4 {[%clk 0:02:50.8]} 14... Bf4 {[%clk 0:02:14.9]} 15. Qf3
{[%clk 0:02:39.2]} 15... Qc7 {[%clk 0:01:58.3]} 16. Nc5 {[%clk 0:02:35.4]} 16...
Bxe3 {[%clk 0:01:44.9]} 17. fxe3 {[%clk 0:02:33.9]} 17... Be6 {[%clk 0:01:29.6]}
18. axb5 {[%clk 0:02:29.8]} 18... cxb5 {[%clk 0:01:19.9]} 19. Bxb5 {[%clk
0:02:28.5]} 19... Red8 {[%clk 0:01:13.9]} 20. Bd3 {[%clk 0:02:21.6]} 20... Qb6
{[%clk 0:01:00]} 21. b4 {[%clk 0:02:15]} 21... a5 {[%clk 0:00:55.8]} 22. bxa5
{[%clk 0:02:09.5]} 22... Rxa5 {[%clk 0:00:56.4]} 23. Rxa5 {[%clk 0:02:09.6]}
23... Qxa5 {[%clk 0:00:54.6]} 24. Nb7 {[%clk 0:02:09.2]} 24... Qxc3 {[%clk
0:00:50.6]} 25. Bxg6 {[%clk 0:02:08.9]} 25... hxg6 {[%clk 0:00:35.2]} 26. Nxd8
{[%clk 0:02:07.6]} 26... Qc8 {[%clk 0:00:29.2]} 27. Nxe6 {[%clk 0:02:01.8]}
27... Qxe6 {[%clk 0:00:28.6]} 28. d5 {[%clk 0:01:59.5]} 28... Qd6 {[%clk
0:00:26.9]} 29. e4 {[%clk 0:01:59.1]} 29... Qe5 {[%clk 0:00:25.5]} 30. Rc1
{[%clk 0:01:58]} 30... Qd4+ {[%clk 0:00:21.9]} 31. Kh1 {[%clk 0:01:58]} 31...
Qd1+ {[%clk 0:00:21.4]} 32. Rxd1 {[%clk 0:01:57.5]} 32... g5 {[%clk 0:00:19.3]}
33. d6 {[%clk 0:01:58.4]} 33... Kh7 {[%clk 0:00:18.3]} 34. Qh5+ {[%clk
0:01:58.4]} 34... Kg8 {[%clk 0:00:18]} 35. d7 {[%clk 0:01:59.3]} 35... g6 {[%clk
0:00:17.9]} 36. d8=Q+ {[%clk 0:02:00.2]} 36... Kg7 {[%clk 0:00:18.2]} 37. Qdh8#
{[%clk 0:02:00.2]} 1-0

[Event "Early-Titled-Tuesday-Blitz-December-26-2023"]
[Site "Chess.com"]
[Date "2023.12.26"]
[Round "2"]
[White "Vincent_Vega95"]
[Black "prime-morty"]
[Result "1-0"]
[WhiteElo "2850"]
[BlackElo "2521"]
[TimeControl "180+1"]
[EndTime "8:15:14 PST"]
[Termination "Vincent_Vega95 won by resignation"]

1. d4 {[%clk 0:03:00.9]} 1... d5 {[%clk 0:02:59.4]} 2. c4 {[%clk 0:03:01.4]}
2... e6 {[%clk 0:02:59.9]} 3. Nf3 {[%clk 0:03:01.7]} 3... a6 {[%clk 0:03:00.1]}
4. b3 {[%clk 0:03:00.7]} 4... Nf6 {[%clk 0:02:58.6]} 5. e3 {[%clk 0:03:00.9]}
5... c5 {[%clk 0:02:56.9]} 6. Bd3 {[%clk 0:03:00.8]} 6... cxd4 {[%clk 0:02:54]}
7. exd4 {[%clk 0:03:01.1]} 7... Bb4+ {[%clk 0:02:54.2]} 8. Bd2 {[%clk
0:03:01.2]} 8... Bxd2+ {[%clk 0:02:54]} 9. Qxd2 {[%clk 0:02:57.9]} 9... dxc4
{[%clk 0:02:52.1]} 10. bxc4 {[%clk 0:02:57.9]} 10... Nc6 {[%clk 0:02:52.3]} 11.
Bc2 {[%clk 0:02:33.3]} 11... e5 {[%clk 0:02:30.9]} 12. d5 {[%clk 0:02:22.1]}
12... e4 {[%clk 0:02:31]} 13. Ng5 {[%clk 0:01:32]} 13... Ne5 {[%clk 0:02:24.4]}
14. Qd4 {[%clk 0:01:32.5]} 14... Nc6 {[%clk 0:02:10.4]} 15. Qc5 {[%clk 0:01:13]}
15... Qa5+ {[%clk 0:02:09]} 16. Qxa5 {[%clk 0:01:12.5]} 16... Nxa5 {[%clk
0:02:09.9]} 17. Na3 {[%clk 0:01:07.9]} 17... Bf5 {[%clk 0:02:08.2]} 18. f3
{[%clk 0:01:08.3]} 18... Rc8 {[%clk 0:01:54.5]} 19. fxe4 {[%clk 0:00:47.2]}
19... Bg6 {[%clk 0:01:45.4]} 20. Ba4+ {[%clk 0:00:46.6]} 20... Ke7 {[%clk
0:01:43.9]} 21. e5 {[%clk 0:00:46.2]} 21... Ng4 {[%clk 0:01:38.5]} 22. d6+
{[%clk 0:00:43.5]} 22... Kd8 {[%clk 0:01:37.6]} 23. e6 {[%clk 0:00:42.1]} 23...
Rc5 {[%clk 0:01:18]} 24. e7+ {[%clk 0:00:36.9]} 24... Kc8 {[%clk 0:01:18.4]} 25.
d7+ {[%clk 0:00:36.2]} 25... Kc7 {[%clk 0:01:18.8]} 26. e8=Q {[%clk 0:00:34.4]}
26... Rxe8+ {[%clk 0:01:18.1]} 27. dxe8=Q {[%clk 0:00:34.3]} 27... Re5+ {[%clk
0:01:18.4]} 28. Qxe5+ {[%clk 0:00:33.8]} 28... Nxe5 {[%clk 0:01:19.3]} 29. O-O
{[%clk 0:00:34.1]} 29... f6 {[%clk 0:01:17.1]} 30. Ne6+ {[%clk 0:00:33.3]} 1-0

[Event "Early-Titled-Tuesday-Blitz-December-26-2023"]
[Site "Chess.com"]
[Date "2023.12.26"]
[Round "2"]
[White "IlanSchnaider"]
[Black "ChessArchitect64"]
[Result "1-0"]
[WhiteElo "2692"]
[BlackElo "2278"]
[TimeControl "180+1"]
[EndTime "8:15:22 PST"]
[Termination "IlanSchnaider won by resignation"]

1. e4 {[%clk 0:03:00.9]} 1... e5 {[%clk 0:02:51.7]} 2. Nf3 {[%clk 0:03:00.9]}
2... Nf6 {[%clk 0:02:52]} 3. d4 {[%clk 0:03:01]} 3... Nxe4 {[%clk 0:02:51.1]} 4.
Bd3 {[%clk 0:03:01]} 4... d5 {[%clk 0:02:50.5]} 5. Nxe5 {[%clk 0:03:01.2]} 5...
Nd7 {[%clk 0:02:43]} 6. Nc3 {[%clk 0:03:01.3]} 6... Nxc3 {[%clk 0:02:38.4]} 7.
bxc3 {[%clk 0:03:00.9]} 7... Nxe5 {[%clk 0:02:37.8]} 8. dxe5 {[%clk 0:03:01.4]}
8... Be7 {[%clk 0:02:38.3]} 9. O-O {[%clk 0:03:01.1]} 9... Be6 {[%clk
0:02:38.5]} 10. f4 {[%clk 0:03:01.3]} 10... g6 {[%clk 0:02:37.5]} 11. Rb1 {[%clk
0:02:59.7]} 11... Qc8 {[%clk 0:02:30.4]} 12. a4 {[%clk 0:02:57.2]} 12... c6
{[%clk 0:02:30.6]} 13. Kh1 {[%clk 0:02:53.5]} 13... h5 {[%clk 0:02:30.3]} 14. a5
{[%clk 0:02:49.3]} 14... Qc7 {[%clk 0:02:29.1]} 15. Be3 {[%clk 0:02:36.5]} 15...
a6 {[%clk 0:01:39.4]} 16. f5 {[%clk 0:02:21.1]} 16... gxf5 {[%clk 0:01:38.2]}
17. Bxf5 {[%clk 0:02:21.5]} 17... c5 {[%clk 0:01:36]} 18. Rb6 {[%clk 0:02:09.1]}
18... Bxf5 {[%clk 0:01:13.8]} 19. Rxf5 {[%clk 0:02:01.2]} 19... O-O-O {[%clk
0:01:11.2]} 20. Rxf7 {[%clk 0:01:57.8]} 20... Qxe5 {[%clk 0:00:59]} 21. Bf4
{[%clk 0:01:54.7]} 21... Qe4 {[%clk 0:00:49.7]} 22. Qb1 {[%clk 0:01:44.6]} 22...
Rhf8 {[%clk 0:00:21.4]} 23. Rxb7 {[%clk 0:01:36.9]} 23... Qxf4 {[%clk
0:00:07.8]} 24. Rxf4 {[%clk 0:01:34.7]} 24... Rxf4 {[%clk 0:00:08.7]} 25. Rxe7
{[%clk 0:01:34]} 25... Rd7 {[%clk 0:00:04.7]} 26. Re8+ {[%clk 0:01:33.9]} 26...
Rd8 {[%clk 0:00:03.9]} 27. Rxd8+ {[%clk 0:01:33.8]} 27... Kxd8 {[%clk
0:00:04.8]} 28. Qb8+ {[%clk 0:01:34]} 1-0

[Event "Early-Titled-Tuesday-Blitz-December-26-2023"]
[Site "Chess.com"]
[Date "2023.12.26"]
[Round "2"]
[White "BashirliSaadat"]
[Black "Gyulamiryan-koryun"]
[Result "1-0"]
[WhiteElo "2437"]
[BlackElo "2005"]
[TimeControl "180+1"]
[EndTime "8:15:31 PST"]
[Termination "BashirliSaadat won on time"]

1. e4 {[%clk 0:03:00.9]} 1... c5 {[%clk 0:02:58.8]} 2. Nf3 {[%clk 0:03:00.7]}
2... d6 {[%clk 0:02:58.6]} 3. Bb5+ {[%clk 0:03:01]} 3... Bd7 {[%clk 0:02:58.4]}
4. Bxd7+ {[%clk 0:03:01.5]} 4... Qxd7 {[%clk 0:02:57.6]} 5. c4 {[%clk
0:03:01.2]} 5... Nc6 {[%clk 0:02:57.1]} 6. Nc3 {[%clk 0:03:00.3]} 6... Nf6
{[%clk 0:02:55.1]} 7. O-O {[%clk 0:03:00.5]} 7... g6 {[%clk 0:02:51.1]} 8. d4
{[%clk 0:03:00.5]} 8... cxd4 {[%clk 0:02:50.4]} 9. Nxd4 {[%clk 0:03:01.4]} 9...
Bg7 {[%clk 0:02:50.8]} 10. h3 {[%clk 0:02:52.3]} 10... O-O {[%clk 0:02:49.9]}
11. Be3 {[%clk 0:02:51.3]} 11... a6 {[%clk 0:02:46.6]} 12. Qd2 {[%clk 0:02:46]}
12... e6 {[%clk 0:02:41.4]} 13. Rfd1 {[%clk 0:02:43.7]} 13... d5 {[%clk
0:02:34.9]} 14. cxd5 {[%clk 0:02:43.1]} 14... exd5 {[%clk 0:02:34.6]} 15. exd5
{[%clk 0:02:42.4]} 15... Nxd5 {[%clk 0:02:11.1]} 16. Nde2 {[%clk 0:02:34.6]}
16... Rad8 {[%clk 0:00:53.5]} 17. Nxd5 {[%clk 0:02:32.1]} 17... Qe6 {[%clk
0:00:49.7]} 18. Nef4 {[%clk 0:02:29]} 18... Qe4 {[%clk 0:00:27.9]} 19. Nc3
{[%clk 0:02:16]} 19... Rxd2 {[%clk 0:00:21.3]} 20. Nxe4 {[%clk 0:02:15.4]} 20...
Rxb2 {[%clk 0:00:20.6]} 21. Nd5 {[%clk 0:02:08.2]} 21... Rc2 {[%clk 0:00:08.2]}
22. Rab1 {[%clk 0:01:59.6]} 22... b5 {[%clk 0:00:05.6]} 23. Rdc1 {[%clk
0:01:55.9]} 23... Rxc1+ {[%clk 0:00:04.4]} 24. Rxc1 {[%clk 0:01:56.7]} 24... Ne5
{[%clk 0:00:03.6]} 25. Ndf6+ {[%clk 0:01:45.4]} 25... Bxf6 {[%clk 0:00:02.4]}
26. Nxf6+ {[%clk 0:01:45.3]} 26... Kg7 {[%clk 0:00:03.3]} 27. Bd4 {[%clk
0:01:39.3]} 27... Kxf6 {[%clk 0:00:01.5]} 28. f4 {[%clk 0:01:38]} 1-0